[Event "Ceske Budejovice GM 2018"]
[Site "Ceske Budejovice"]
[Date "2018.06.22"]
[Round "2"]
[White "Voloshin, Leonid"]
[Black "Bures, Jaroslav"]
[Result "1/2-1/2"]
[ECO "A20"]
[WhiteElo "2383"]
[BlackElo "2406"]
[Annotator "NA"]
[PlyCount "21"]
[EventDate "2018.06.21"]
[EventCountry "CZE"]
[SourceTitle "playchess.com"]
[Source "ChessBase"]
[SourceQuality "1"]
[TimeControl "40/5400+30:1800+30"]

1. c4 {[%emt 0:01:04]} e5 {[%emt 0:00:09]} 2. a3 {[%emt 0:00:23]} Nf6 {[%emt 0:03:05]} 3. e3 {[%emt 0:00:36]} c5 {[%emt 0:04:19]} 4. d4 {[%emt 0:06:16]} d6 {[%emt 0:08:03]} 5. Nc3 {[%emt 0:05:57]} Nc6 {[%emt 0:02:48]} 6. d5 {[%emt 0:00:50]} Ne7 {[%emt 0:00:07]} 7. e4 {[%emt 0:03:51]} h5 {[%emt 0:02:41]} 8. Bg5 {[%emt 0:07:41]} Ng6 {[%emt 0:01:34]} 9. h4 {[%emt 0:03:31]} Be7 {[%emt 0:00:04]} 10. Bxf6 {[%emt 0:05:48]} Bxf6 {[%emt 0:04:25]} 11. g3 {[%emt 0:00:59]} 1/2-1/2

[Event "Ceske Budejovice GM 2018"]
[Site "Ceske Budejovice"]
[Date "2018.06.26"]
[Round "6"]
[White "Nguyen, Piotr"]
[Black "Bures, Jaroslav"]
[Result "1/2-1/2"]
[ECO "A13"]
[WhiteElo "2397"]
[BlackElo "2406"]
[Annotator "ChessBase"]
[PlyCount "148"]
[EventDate "2018.06.21"]
[EventCountry "CZE"]
[SourceTitle "playchess.com"]
[Source "ChessBase"]
[SourceQuality "1"]
[TimeControl "40/5400+30:1800+30"]

1. c4 {[%emt 0:00:00]} e6 {[%emt 0:00:43]} 2. g3 {[%emt 0:00:08]} d5 {[%emt 0:00:06]} 3. Bg2 {[%emt 0:00:10]} Nf6 {[%emt 0:00:27]} 4. Nf3 {[%emt 0:00:15]} dxc4 {[%emt 0:00:33]} 5. Qa4+ {[%emt 0:00:21]} Bd7 {[%emt 0:00:37]} 6. Qxc4 {[%emt 0:00:11]} Bc6 {[%emt 0:00:03]} 7. O-O {[%emt 0:10:38]} Be7 {[%emt 0:00:32]} 8. Qc2 {[%emt 0:02:23]} O-O {[%emt 0:01:08]} 9. Nc3 {[%emt 0:01:09]} Na6 {[%emt 0:00:54]} 10. a3 {[%emt 0:09:30]} Bxf3 {[%emt 0:01:00]} 11. Bxf3 {[%emt 0:00:09]} c6 {[%emt 0:00:04]} 12. Rd1 {[%emt 0:04:28]} e5 {[%emt 0:09:11]} 13. e3 {[%emt 0:09:38]} Qc7 {[%emt 0:09:30]} 14. b3 {[%emt 0:03:17]} Rfd8 {[%emt 0:08:03]} 15. Bb2 {[%emt 0:12:20]} Nc5 {[%emt 0:02:03]} 16. d3 {[%emt 0:00:43]} a5 {[%emt 0:06:37]} 17. Ne2 {[%emt 0:03:09]} Qb6 {[%emt 0:14:04]} 18. Bxe5 {[%emt 0:04:11]} Qxb3 {[%emt 0:00:46]} 19. Qxb3 {[%emt 0:00:58]} Nxb3 {[%emt 0:00:02]} 20. Rab1 {[%emt 0:17:02]} a4 {[%emt 0:00:24]} 21. Bb2 {[%emt 0:02:23]} Nd5 {[%emt 0:01:45]} 22. Nc1 {[%emt 0:03:23]} Bxa3 {[%emt 0:08:21]} 23. Bxd5 {[%emt 0:03:30]} Bxb2 {[%emt 0:00:41]} 24. Bxb3 {[%emt 0:00:47]} Bxc1 {[%emt 0:00:22]} 25. Ba2 {[%emt 0:03:32]} Ba3 {[%emt 0:14:15]} 26. Rxb7 {[%emt 0:00:04]} Kh8 {[%emt 0:00:05]} 27. Bxf7 {[%emt 0:01:50]} Bf8 {[%emt 0:02:50]} 28. Bc4 {[%emt 0:01:34]} a3 {[%emt 0:01:08]} 29. Rdb1 {[%emt 0:01:24]} g6 {[%emt 0:04:05]} 30. Rc7 {[%emt 0:02:54]} Rdc8 {[%emt 0:02:02]} 31. Rd7 {[%emt 0:00:14]} Rd8 {[%emt 0:00:44]} 32. Rc7 {[%emt 0:00:16]} Rdc8 {[%emt 0:00:09]} 33. Rf7 {[%emt 0:01:07]} Rcb8 {[%emt 0:00:11]} 34. Rxb8 {[%emt 0:00:13]} Rxb8 {[%emt 0:00:04]} 35. Ra7 {[%emt 0:00:12]} Rb2 {[%emt 0:01:46]} 36. g4 {[%emt 0:01:40]} g5 {[%emt 0:02:12]} 37. Kg2 {[%emt 0:00:57]} Bc5 {[%emt 0:03:54]} 38. Ra8+ {[%emt 0:00:04]} Kg7 {[%emt 0:00:02]} 39. Kf3 {[%emt 0:01:15]} Bb4 {[%emt 0:01:34]} 40. Ra7+ {[%emt 0:01:06]} Kf8 {[%emt 0:34:20]} 41. h3 {[%emt 0:17:13]} Be1 {[%emt 0:00:00]} 42. Rxa3 {[%emt 0:00:25]} Rxf2+ {[%emt 0:00:00]} 43. Ke4 {[%emt 0:00:03]} Rh2 {[%emt 0:00:00]} 44. Ra1 {[%emt 0:04:47]} Bh4 {[%emt 0:00:00]} 45. Ra6 {[%emt 0:04:12]} Rxh3 {[%emt 0:00:00]} 46. Rxc6 {[%emt 0:00:03]} Be1 {[%emt 0:00:00]} 47. Rf6+ {[%emt 0:03:07]} Kg7 {[%emt 0:00:00]} 48. Rf3 {[%emt 0:00:07]} Rh4 {[%emt 0:00:00]} 49. Kf5 {[%emt 0:00:31]} h5 {[%emt 0:00:00]} 50. Rf1 {[%emt 0:01:25]} Bd2 {[%emt 0:00:00]} 51. Kxg5 {[%emt 0:01:23]} Rxg4+ {[%emt 0:00:00]} 52. Kxh5 {[%emt 0:00:01]} Rg3 {[%emt 0:00:00]} 53. Rf7+ {[%emt 0:00:40]} Kh8 {[%emt 0:00:00]} 54. e4 {[%emt 0:00:46]} Bc3 {[%emt 0:00:00]} 55. Rf5 {[%emt 0:01:56]} Kg7 {[%emt 0:01:36]} 56. Rf7+ {[%emt 0:00:18]} Kh8 {[%emt 0:00:09]} 57. Re7 {[%emt 0:00:37]} Bf6 {[%emt 0:01:11]} 58. Re6 {[%emt 0:00:31]} Kg7 {[%emt 0:00:19]} 59. Ra6 {[%emt 0:01:13]} Rg5+ {[%emt 0:04:27]} 60. Kh4 {[%emt 0:00:04]} Ra5+ {[%emt 0:00:16]} 61. Kg4 {[%emt 0:00:05]} Rxa6 {[%emt 0:00:05]} 62. Bxa6 {[%emt 0:00:06]} Kf7 {[%emt 0:01:36]} 63. Kf5 {[%emt 0:00:04]} Bc3 {[%emt 0:01:35]} 64. e5 {[%emt 0:00:10]} Ke7 {[%emt 0:01:07]} 65. Ke4 {[%emt 0:00:04]} Ba5 {[%emt 0:01:13]} 66. Kd5 {[%emt 0:00:18]} Bb6 {[%emt 0:00:09]} 67. Bc8 {[%emt 0:00:04]} Ba7 {[%emt 0:00:08]} 68. Bg4 {[%emt 0:00:22]} Bb6 {[%emt 0:00:05]} 69. Kc4 {[%emt 0:01:18]} Ba7 {[%emt 0:00:07]} 70. d4 {[%emt 0:00:16]} Bb6 {[%emt 0:00:25]} 71. d5 {[%emt 0:01:49]} Bc7 {[%emt 0:00:11]} 72. Kd4 {[%emt 0:00:06]} Bb8 {[%emt 0:00:05]} 73. d6+ {[%emt 0:00:04]} Bxd6 {[%emt 0:00:03]} 74. exd6+ {[%emt 0:00:04]} Kxd6 {[%emt 0:00:04]} 1/2-1/2

[Event "Ceske Budejovice GM 2018"]
[Site "Ceske Budejovice"]
[Date "2018.06.29"]
[Round "9"]
[White "Mirzoev, Azer"]
[Black "Svoboda, Svatopluk"]
[Result "1/2-1/2"]
[ECO "D91"]
[WhiteElo "2506"]
[BlackElo "2434"]
[Annotator "ChessBase"]
[PlyCount "31"]
[EventDate "2018.06.21"]
[EventCountry "CZE"]
[SourceTitle "playchess.com"]
[Source "ChessBase"]
[SourceQuality "1"]
[TimeControl "40/5400+30:1800+30"]

1. d4 {[%emt 0:09:08]} Nf6 {[%emt 0:00:54]} 2. c4 {[%emt 0:00:08]} g6 {[%emt 0:00:12]} 3. Nc3 {[%emt 0:00:06]} d5 {[%emt 0:00:16]} 4. Nf3 {[%emt 0:01:06]} Bg7 {[%emt 0:00:20]} 5. Bg5 {[%emt 0:00:14]} Ne4 {[%emt 0:01:25]} 6. Bh4 {[%emt 0:01:02]} Nxc3 {[%emt 0:00:55]} 7. bxc3 {[%emt 0:00:37]} c5 {[%emt 0:01:13]} 8. cxd5 {[%emt 0:02:23]} Qxd5 {[%emt 0:00:20]} 9. e3 {[%emt 0:00:09]} Nc6 {[%emt 0:01:57]} 10. Be2 {[%emt 0:01:49]} cxd4 {[%emt 0:00:51]} 11. cxd4 {[%emt 0:00:07]} O-O {[%emt 0:00:35]} 12. O-O {[%emt 0:00:38]} Bf5 {[%emt 0:02:42]} 13. Qb3 {[%emt 0:04:22]} Qxb3 {[%emt 0:04:57]} 14. axb3 {[%emt 0:00:46]} Rfc8 {[%emt 0:00:38]} 15. Rfc1 {[%emt 0:02:02]} e5 {[%emt 0:05:38]} 16. dxe5 {[%emt 0:04:23]} 1/2-1/2

[Event "Ceske Budejovice GM 2018"]
[Site "Ceske Budejovice"]
[Date "2018.06.29"]
[Round "9"]
[White "Cernousek, Lukas"]
[Black "Nguyen, Piotr"]
[Result "0-1"]
[ECO "B09"]
[WhiteElo "2462"]
[BlackElo "2397"]
[Annotator "ChessBase"]
[PlyCount "68"]
[EventDate "2018.06.21"]
[EventCountry "CZE"]
[SourceTitle "playchess.com"]
[Source "ChessBase"]
[SourceQuality "1"]
[TimeControl "40/5400+30:1800+30"]

1. e4 {[%emt 0:00:00]} d6 {[%emt 0:01:33]} 2. d4 {[%emt 0:00:00]} Nf6 {[%emt 0:00:06]} 3. Nc3 {[%emt 0:00:00]} g6 {[%emt 0:00:06]} 4. f4 {[%emt 0:00:35]} Bg7 {[%emt 0:00:05]} 5. Nf3 {[%emt 0:00:04]} O-O {[%emt 0:00:20]} 6. e5 {[%emt 0:00:19]} dxe5 {[%emt 0:00:14]} 7. fxe5 {[%emt 0:00:08]} Nd5 {[%emt 0:00:12]} 8. Bc4 {[%emt 0:01:40]} Be6 {[%emt 0:01:08]} 9. Qe2 {[%emt 0:00:56]} Nxc3 {[%emt 0:06:58]} 10. bxc3 {[%emt 0:00:03]} Bxc4 {[%emt 0:00:06]} 11. Qxc4 {[%emt 0:00:04]} Nc6 {[%emt 0:00:06]} 12. O-O {[%emt 0:17:41]} Na5 {[%emt 0:01:10]} 13. Qd3 {[%emt 0:01:19]} Qd5 {[%emt 0:05:11]} 14. a4 {[%emt 0:20:09]} b6 {[%emt 0:22:24]} 15. Bf4 {[%emt 0:04:45]} c5 {[%emt 0:04:44]} 16. Rae1 {[%emt 0:01:54]} Rac8 {[%emt 0:07:32]} 17. Ng5 {[%emt 0:06:04]} h6 {[%emt 0:12:52]} 18. Ne4 {[%emt 0:01:03]} cxd4 {[%emt 0:00:52]} 19. cxd4 {[%emt 0:07:16]} Qc4 {[%emt 0:00:18]} 20. Qe3 {[%emt 0:19:18]} g5 {[%emt 0:02:49]} 21. Bg3 {[%emt 0:00:30]} Qxc2 {[%emt 0:01:23]} 22. Qf3 {[%emt 0:11:26]} Qxa4 {[%emt 0:04:39]} 23. d5 {[%emt 0:00:05]} Qd4+ {[%emt 0:04:04]} 24. Kh1 {[%emt 0:00:03]} Nc4 {[%emt 0:01:02]} 25. d6 {[%emt 0:05:10]} Nxe5 {[%emt 0:04:38]} 26. Bxe5 {[%emt 0:00:09]} Qxe5 {[%emt 0:00:04]} 27. Ng3 {[%emt 0:00:45]} Rc3 {[%emt 0:05:27]} 28. Qb7 {[%emt 0:01:56]} Qxd6 {[%emt 0:01:32]} 29. Nf5 {[%emt 0:00:22]} Qc7 {[%emt 0:00:35]} 30. Nxe7+ {[%emt 0:00:25]} Kh8 {[%emt 0:00:06]} 31. Qd5 {[%emt 0:00:43]} Qc4 {[%emt 0:04:09]} 32. Qd6 {[%emt 0:00:36]} Rd3 {[%emt 0:04:27]} 33. Ng6+ {[%emt 0:00:29]} Kg8 {[%emt 0:00:28]} 34. Ne7+ {[%emt 0:00:32]} Kh7 {[%emt 0:00:13]} 0-1

[Event "Ceske Budejovice GM 2018"]
[Site "Ceske Budejovice"]
[Date "2018.06.29"]
[Round "9"]
[White "Plischki, Sebastian"]
[Black "Voloshin, Leonid"]
[Result "1/2-1/2"]
[ECO "D67"]
[WhiteElo "2413"]
[BlackElo "2383"]
[Annotator "ChessBase"]
[PlyCount "20"]
[EventDate "2018.06.21"]
[EventCountry "CZE"]
[SourceTitle "playchess.com"]
[Source "ChessBase"]
[SourceQuality "1"]
[TimeControl "40/5400+30:1800+30"]

1. d4 {[%emt 0:00:00]} d5 {[%emt 0:00:21]} 2. c4 {[%emt 0:00:00]} e6 {[%emt 0:00:27]} 3. Nc3 {[%emt 0:00:00]} Nf6 {[%emt 0:00:07]} 4. Bg5 {[%emt 0:00:00]} Be7 {[%emt 0:00:08]} 5. e3 {[%emt 0:00:00]} O-O {[%emt 0:00:13]} 6. Nf3 {[%emt 0:00:05]} Nbd7 {[%emt 0:00:16]} 7. Rc1 {[%emt 0:00:07]} c6 {[%emt 0:00:42]} 8. Bd3 {[%emt 0:00:08]} dxc4 {[%emt 0:00:51]} 9. Bxc4 {[%emt 0:00:06]} Nd5 {[%emt 0:00:09]} 10. Bxe7 {[%emt 0:00:06]} Qxe7 {[%emt 0:00:07]} 1/2-1/2

[Event "Ceske Budejovice GM 2018"]
[Site "Ceske Budejovice"]
[Date "2018.06.29"]
[Round "9"]
[White "Bures, Jaroslav"]
[Black "Simacek, Pavel"]
[Result "0-1"]
[ECO "A05"]
[WhiteElo "2406"]
[BlackElo "2490"]
[Annotator "ChessBase"]
[PlyCount "74"]
[EventDate "2018.06.21"]
[EventCountry "CZE"]
[SourceTitle "playchess.com"]
[Source "ChessBase"]
[SourceQuality "1"]
[TimeControl "40/5400+30:1800+30"]

1. Nf3 {[%emt 0:00:00]} Nf6 {[%emt 0:00:29]} 2. g3 {[%emt 0:00:00]} d6 {[%emt 0:04:37]} 3. Bg2 {[%emt 0:06:03]} e5 {[%emt 0:00:28]} 4. d3 {[%emt 0:01:06]} Be7 {[%emt 0:02:19]} 5. c4 {[%emt 0:00:30]} O-O {[%emt 0:00:20]} 6. Nc3 {[%emt 0:00:16]} c5 {[%emt 0:06:48]} 7. O-O {[%emt 0:01:03]} Nc6 {[%emt 0:00:03]} 8. a3 {[%emt 0:02:31]} h6 {[%emt 0:00:53]} 9. b4 {[%emt 0:10:54]} cxb4 {[%emt 0:01:18]} 10. Nd5 {[%emt 0:00:18]} bxa3 {[%emt 0:03:35]} 11. Nxe7+ {[%emt 0:01:10]} Qxe7 {[%emt 0:01:02]} 12. Bxa3 {[%emt 0:00:07]} Rd8 {[%emt 0:00:25]} 13. Qb3 {[%emt 0:06:13]} Be6 {[%emt 0:04:41]} 14. Rfb1 {[%emt 0:00:30]} Rab8 {[%emt 0:00:07]} 15. Nd2 {[%emt 0:05:50]} Nd4 {[%emt 0:01:11]} 16. Qd1 {[%emt 0:00:10]} Bg4 {[%emt 0:00:22]} 17. f3 {[%emt 0:00:37]} Be6 {[%emt 0:05:44]} 18. e3 {[%emt 0:02:11]} Nc6 {[%emt 0:00:17]} 19. d4 {[%emt 0:06:32]} exd4 {[%emt 0:07:15]} 20. e4 {[%emt 0:01:47]} Qc7 {[%emt 0:12:35]} 21. Bf1 {[%emt 0:06:20]} Nd7 {[%emt 0:03:09]} 22. f4 {[%emt 0:03:22]} Nc5 {[%emt 0:01:34]} 23. e5 {[%emt 0:06:56]} b6 {[%emt 0:11:44]} 24. Qh5 {[%emt 0:01:41]} Qd7 {[%emt 0:10:55]} 25. exd6 {[%emt 0:05:48]} Bf5 {[%emt 0:01:20]} 26. Re1 {[%emt 0:06:02]} Nd3 {[%emt 0:04:14]} 27. Re7 {[%emt 0:09:31]} Nxe7 {[%emt 0:00:08]} 28. dxe7 {[%emt 0:00:03]} Re8 {[%emt 0:00:44]} 29. Bxd3 {[%emt 0:06:34]} Bxd3 {[%emt 0:00:06]} 30. Re1 {[%emt 0:00:04]} b5 {[%emt 0:07:49]} 31. Qd5 {[%emt 0:00:02]} Rb7 {[%emt 0:00:07]} 32. Qxd7 {[%emt 0:07:14]} Rxd7 {[%emt 0:00:05]} 33. cxb5 {[%emt 0:00:03]} Bxb5 {[%emt 0:00:22]} 34. Kf2 {[%emt 0:00:43]} f6 {[%emt 0:07:05]} 35. Ne4 {[%emt 0:01:30]} Bc6 {[%emt 0:00:12]} 36. Nd6 {[%emt 0:00:04]} Rexe7 {[%emt 0:00:14]} 37. Rc1 {[%emt 0:00:03]} Bd5 {[%emt 0:01:53]} 0-1